bitfinex/quotes_BTCUSD_20250115
["timestamp","ask_amount","ask_price","bid_price","bid_amount"]
[1736953099495,0.200847,99579.0,99570.0,0.01511]
[1736953099960,0.200849,99577.0,99570.0,0.01511]
[1736953100427,0.200859,99573.0,99570.0,0.01511]
[1736953100560,0.200849,99577.0,99570.0,0.01511]
[1736953100991,0.200859,99573.0,99570.0,0.01511]
[1736953101247,0.200849,99577.0,99570.0,0.01511]
[1736953101872,0.201849,99577.0,99570.0,0.01511]
[1736953102122,0.201849,99577.0,99563.0,0.01006907]
[1736953102123,0.173,99573.0,99563.0,0.01006907]
[1736953102334,0.023,99571.0,99563.0,0.01006907]
[1736953102507,0.10422692,99570.0,99563.0,0.01006907]
[1736953102719,0.07835202,99590.0,99572.0,0.01511]
[1736953103004,0.200835,99584.0,99572.0,0.01511]
[1736953103152,0.200855,99575.0,99572.0,0.01511]
[1736953103511,0.15,99579.0,99572.0,0.01511]
[1736953103871,0.001,99577.0,99572.0,0.01511]
[1736953104300,0.001,99577.0,99576.0,0.01511]
[1736953104501,0.001,99577.0,99576.0,0.12513907]
[1736953105583,0.373825,99589.0,99581.0,0.09996]
[1736953105996,0.173,99589.0,99581.0,0.09996]
[1736953106614,0.0813,99606.0,99596.0,0.01511]
[1736953106871,0.25920929,99630.0,99596.0,0.01511]
[1736953106872,0.0813,99619.0,99597.0,0.01511]
[1736953107058,0.200775,99614.0,99602.0,0.01511]
[1736953107353,0.10422692,99613.0,99602.0,0.01511]
[1736953107648,0.200779,99612.0,99596.0,0.01006907]
[1736953107805,0.12722692,99611.0,99597.0,0.11507]
[1736953108039,0.023,99603.0,99597.0,0.11507]
[1736953108220,0.15,99609.0,99602.0,0.01511]
[1736953108421,0.15,99607.0,99602.0,0.01511]
[1736953109454,0.15,99607.0,99597.0,0.01511]
[1736953109455,0.200803,99600.0,99597.0,0.01511]
[1736953109741,0.200797,99603.0,99597.0,0.11507]
[1736953109922,0.15,99611.0,99602.0,0.01511]
[1736953110387,0.023,99608.0,99602.0,0.01511]
[1736953110600,0.023,99608.0,99597.0,0.09996]
[1736953110601,0.001,99614.0,99613.0,0.01511]
[1736953110813,0.001,99614.0,99613.0,0.12513907]
[1736953111015,0.0832,99639.0,99626.0,0.01511]
[1736953111133,0.200741,99631.0,99626.0,0.02517907]
[1736953111358,0.200734,99635.0,99626.0,0.02517907]
[1736953111777,0.00135451,99629.0,99626.0,0.02517907]
[1736953112629,0.00135451,99629.0,99628.0,0.01511]
[1736953112753,0.00135451,99629.0,99628.0,0.11507]
[1736953114161,0.00135451,99629.0,99627.0,0.01511]
[1736953114623,0.00135451,99629.0,99628.0,0.005]
[1736953114841,0.00135451,99629.0,99628.0,0.007]
[1736953115047,0.00135451,99629.0,99628.0,0.002]
[1736953115493,0.00135451,99629.0,99628.0,0.10196]
[1736953115715,0.00135451,99629.0,99628.0,0.002]
[1736953115909,0.00135451,99629.0,99628.0,0.10496]
[1736953116302,0.00135451,99629.0,99628.0,0.005]
[1736953116450,0.00135451,99629.0,99628.0,0.10496]
[1736953117070,0.00135451,99629.0,99628.0,0.10196]
[1736953117341,0.00135451,99629.0,99628.0,0.12207]
[1736953117880,0.00135451,99629.0,99628.0,0.02211]
[1736953118716,0.00135451,99629.0,99628.0,0.007]
[1736953118931,0.27858143,99629.0,99628.0,0.007]
[1736953119163,0.17435451,99629.0,99628.0,0.007]
[1736953119793,0.15135451,99629.0,99628.0,0.007]
[1736953120217,0.15135451,99629.0,99628.0,0.002]
[1736953120413,0.15135451,99629.0,99628.0,0.003]
[1736953120659,0.24971106,99629.0,99628.0,0.001]
[1736953120867,0.20076,99621.0,99620.0,0.11507]
[1736953121072,0.401504,99625.0,99620.0,0.11507]
[1736953122110,0.20076,99621.0,99620.0,0.002]
[1736953122525,0.023,99624.0,99620.0,0.002]
[1736953122925,0.15,99626.0,99622.0,0.01511]
[1736953123085,0.01574672,99624.0,99621.0,0.01511]
[1736953123303,0.00135451,99629.0,99623.0,0.01511]
[1736953123502,0.00135451,99629.0,99624.0,0.09996]
[1736953123701,0.00135451,99629.0,99628.0,0.11507]
[1736953125157,0.00135451,99629.0,99628.0,0.22130048]
[1736953125378,0.00135451,99629.0,99628.0,0.22029692]
[1736953125991,0.00135451,99629.0,99628.0,0.13398385]
[1736953126201,0.00135451,99629.0,99628.0,0.12646385]
[1736953126629,0.00135451,99629.0,99628.0,0.13598385]
[1736953126841,0.00135451,99629.0,99628.0,0.14298745]
[1736953127263,0.00135451,99629.0,99628.0,0.13998745]
[1736953127491,0.00135451,99629.0,99628.0,0.34373345]
[1736953127718,0.00135451,99629.0,99628.0,0.34272985]
[1736953128985,0.00135451,99629.0,99628.0,0.47095677]
[1736953129449,0.00135451,99629.0,99628.0,0.48801156]
[1736953129649,0.00135451,99629.0,99628.0,0.38378464]
[1736953129857,0.00135451,99629.0,99628.0,0.38578464]
[1736953130054,0.01709843,99629.0,99628.0,0.38578464]
[1736953130295,0.01709843,99629.0,99628.0,0.36572985]
[1736953132120,0.01709843,99629.0,99628.0,0.36552985]
[1736953132510,0.01709843,99629.0,99628.0,0.44575677]
[1736953132889,0.01709843,99629.0,99628.0,0.36552985]
[1736953133276,0.01709843,99629.0,99628.0,0.15878385]
[1736953133446,0.00135451,99629.0,99628.0,0.15778742]
[1736953133589,0.00135451,99629.0,99628.0,0.16578742]
[1736953133809,0.00135451,99629.0,99628.0,0.16878742]
[1736953134230,0.00135451,99629.0,99628.0,0.16146742]
[1736953134426,0.00135451,99629.0,99628.0,0.04311357]
[1736953134638,0.00135451,99629.0,99628.0,0.01811]
[1736953134839,0.00135451,99629.0,99628.0,0.12407]
[1736953135052,0.00135451,99629.0,99628.0,0.12107]
[1736953135448,0.06463746,99629.0,99628.0,0.006]
[1736953135637,0.02435451,99629.0,99628.0,0.006]
[1736953136054,0.01352985,99629.0,99628.0,0.006]
[1736953136464,0.01352985,99629.0,99628.0,0.002]
[1736953136937,0.03652985,99629.0,99628.0,0.002]
[1736953137167,0.023,99628.0,99621.0,0.01511]
[1736953137363,0.01352985,99629.0,99621.0,0.01511]
[1736953137727,0.023,99628.0,99621.0,0.01511]
[1736953137903,0.03517534,99628.0,99621.0,0.01511]
[1736953138136,0.03517534,99628.0,99617.0,0.01511]
[1736953138312,0.200758,99622.0,99619.0,0.09996]
[1736953138675,0.03517534,99628.0,99621.0,0.01511]
[1736953138855,0.03517534,99628.0,99621.0,0.02517907]
[1736953139076,0.200748,99627.0,99621.0,0.01511]
[1736953139308,0.200748,99627.0,99621.0,0.01611]
[1736953139616,0.200754,99624.0,99619.0,0.11002907]
[1736953139827,0.200754,99624.0,99622.0,0.01855526]
[1736953140665,0.200754,99624.0,99623.0,0.01855526]
[1736953140873,0.21292178,99624.0,99623.0,0.01855526]
[1736953141483,0.22866823,99624.0,99623.0,0.01855526]
[1736953141912,0.284468,99624.0,99623.0,0.01855526]
[1736953142259,0.02791423,99624.0,99623.0,0.01855526]
[1736953142980,0.05091423,99624.0,99623.0,0.02155526]
[1736953143186,0.15514115,99624.0,99623.0,0.02155526]
[1736953143415,0.38784115,99624.0,99623.0,0.02155526]
[1736953143629,0.42267337,99624.0,99623.0,0.02255526]
[1736953143816,0.49981588,99624.0,99623.0,0.02255526]
[1736953144041,0.41726329,99624.0,99623.0,0.02255526]
[1736953144337,0.41726329,99624.0,99623.0,0.01855526]
[1736953145663,0.14003637,99624.0,99617.0,0.01006907]
[1736953146274,0.023,99623.0,99617.0,0.01006907]
[1736953146479,0.001,99624.0,99622.0,0.01511]
[1736953146894,0.023,99624.0,99622.0,0.01511]
[1736953147305,0.001,99624.0,99623.0,0.11507]
[1736953147524,0.001,99624.0,99623.0,0.11607377]
[1736953147739,0.00135451,99629.0,99628.0,0.09996]
[1736953147944,0.00135451,99629.0,99628.0,0.11103266]
[1736953148629,0.00135451,99629.0,99628.0,0.14469135]
[1736953149003,0.00135451,99629.0,99628.0,0.15201135]
[1736953149782,0.00135451,99629.0,99628.0,0.16001135]
[1736953149985,0.00135451,99629.0,99628.0,0.15900776]
[1736953150567,0.00135451,99629.0,99628.0,0.16200776]
[1736953150971,0.02435451,99629.0,99628.0,0.15468776]
[1736953151223,0.02435451,99629.0,99628.0,0.13957776]
[1736953151803,0.37509851,99629.0,99628.0,0.03961776]
[1736953152707,0.17435451,99629.0,99628.0,0.03161776]
[1736953152908,0.37509851,99629.0,99628.0,0.03161776]
[1736953153111,0.36509851,99629.0,99628.0,0.03161776]
[1736953153313,0.16435451,99629.0,99628.0,0.14768776]
[1736953153735,0.16435451,99629.0,99628.0,0.14668776]
[1736953154115,0.16435451,99629.0,99628.0,0.14768776]
[1736953154502,0.0408551,99640.0,99639.0,0.01511]
[1736953154732,0.0408551,99640.0,99639.0,0.02517907]
[1736953155172,0.0638551,99640.0,99639.0,0.04372776]
[1736953155380,0.0408551,99640.0,99639.0,0.04372776]
[1736953155552,0.0408551,99640.0,99639.0,0.14368776]
[1736953156133,0.0418551,99640.0,99639.0,0.14368776]
[1736953156992,0.0408551,99640.0,99639.0,0.14368776]
[1736953157495,0.0408551,99640.0,99639.0,0.14868776]
[1736953157702,0.0408551,99640.0,99639.0,0.03361776]
[1736953157703,0.0638551,99640.0,99639.0,0.03361776]
[1736953157914,0.25377317,99640.0,99639.0,0.03361776]
[1736953158116,0.40377317,99640.0,99639.0,0.03361776]
[1736953158759,0.39638202,99640.0,99639.0,0.03361776]
[1736953159195,0.39638202,99640.0,99639.0,0.00729184]
[1736953159398,0.39638202,99640.0,99639.0,0.005]
[1736953159579,0.173,99639.0,99625.0,0.01511]
[1736953159707,0.173,99637.0,99625.0,0.01006907]
[1736953159968,0.37375,99626.0,99625.0,0.01006907]
[1736953161025,0.173,99626.0,99625.0,0.11002907]
[1736953161453,0.173,99626.0,99625.0,0.12513907]
[1736953161878,0.1738547,99626.0,99625.0,0.12513907]
[1736953162083,0.1738547,99626.0,99625.0,0.12613907]
[1736953162256,0.1738547,99626.0,99625.0,0.12513907]
[1736953162631,0.1508547,99626.0,99625.0,0.12613907]
[1736953162999,0.1508547,99626.0,99625.0,0.12513907]
[1736953163209,0.0008547,99626.0,99625.0,0.12513907]
[1736953163696,0.0008547,99626.0,99625.0,0.23036599]
[1736953164233,0.0008547,99626.0,99625.0,0.23436599]
[1736953164432,0.0008547,99626.0,99625.0,0.23036599]
[1736953164640,0.0008547,99626.0,99625.0,0.22936599]
[1736953164842,0.0008547,99626.0,99625.0,0.23336599]
[1736953165082,0.0008547,99626.0,99625.0,0.22936599]
[1736953165289,0.0008547,99626.0,99625.0,1.72936599]
[1736953165917,0.0008547,99626.0,99625.0,1.63413907]
[1736953166306,0.0008547,99626.0,99625.0,1.63513907]
[1736953166654,0.0008547,99626.0,99625.0,1.63413907]
[1736953166857,0.0008547,99626.0,99625.0,0.14141907]
[1736953167169,0.0008547,99626.0,99625.0,0.14542271]
[1736953167634,0.0008547,99626.0,99625.0,0.02206907]
[1736953167840,0.0008547,99626.0,99625.0,0.12202907]
[1736953168628,0.0008547,99626.0,99625.0,0.11302907]
[1736953169589,0.0008547,99626.0,99625.0,0.11402907]
[1736953169797,0.0008547,99626.0,99625.0,0.13013907]
[1736953171344,0.03959849,99626.0,99625.0,0.13013907]
[1736953172184,0.03959849,99626.0,99625.0,0.14866388]
[1736953173559,0.0238547,99626.0,99625.0,0.14866388]
[1736953174600,0.0008547,99626.0,99625.0,0.14866388]
[1736953174814,0.0008547,99626.0,99625.0,0.15045686]
[1736953177767,0.0229547,99630.0,99627.0,0.09996]
[1736953177973,0.200739,99632.0,99625.0,0.03538686]
[1736953177974,0.0475,99627.0,99625.0,0.03538686]
[1736953178173,0.15172692,99627.0,99625.0,0.03538686]
[1736953178374,0.35247492,99627.0,99625.0,0.03538686]
[1736953178670,0.35247492,99627.0,99625.0,0.03438686]
[1736953178873,0.35247492,99627.0,99625.0,0.13434686]
[1736953179093,0.35247492,99627.0,99625.0,0.03438686]
[1736953179297,0.50247492,99627.0,99626.0,0.09996]
[1736953179500,0.50247492,99627.0,99626.0,0.11848481]
[1736953179683,0.52547492,99627.0,99626.0,0.11848481]
[1736953180136,0.52547492,99627.0,99626.0,0.01852481]
[1736953181203,0.52547492,99627.0,99626.0,0.11848481]
[1736953181397,0.54121973,99627.0,99626.0,0.11848481]
[1736953181646,0.54121973,99627.0,99626.0,0.01852481]
[1736953182226,0.71559511,99627.0,99626.0,0.01852481]
[1736953182408,0.62031973,99627.0,99626.0,0.01852481]
[1736953182808,0.173,99626.0,99625.0,0.00179298]
[1736953183008,0.200774,99614.0,99613.0,0.00050071]
[1736953183211,0.0791,99612.0,99599.0,0.17674569]
[1736953183426,0.421303,99600.0,99599.0,0.17179112]
[1736953183636,0.52552992,99600.0,99599.0,0.00014963]
[1736953184099,0.69392992,99600.0,99599.0,0.00014963]
[1736953184442,0.68932992,99600.0,99599.0,0.00014963]
[1736953184623,0.3889,99600.0,99599.0,0.00014963]
[1736953184854,0.3414,99600.0,99599.0,0.00014963]
[1736953185059,0.3454,99600.0,99599.0,0.00014963]
[1736953185264,0.3414,99600.0,99599.0,0.00014963]
[1736953185672,0.35172124,99600.0,99599.0,0.00014963]
[1736953186518,0.35172124,99600.0,99599.0,0.00114963]
[1736953186928,0.45594816,99600.0,99599.0,0.00114963]
[1736953187135,0.45594816,99600.0,99599.0,0.00014963]
[1736953187541,0.45594816,99600.0,99599.0,0.00114963]
[1736953187962,0.45594816,99600.0,99599.0,0.00314963]
[1736953188171,0.45594816,99600.0,99599.0,0.00114963]
[1736953188355,0.35172124,99600.0,99599.0,0.00114963]
[1736953188527,0.35472124,99600.0,99599.0,0.00114963]
[1736953188732,0.35172124,99600.0,99599.0,0.00114963]
[1736953188947,0.35069217,99600.0,99599.0,0.00014963]
[1736953189154,0.35369217,99600.0,99599.0,0.00014963]
[1736953189477,0.35069217,99600.0,99599.0,0.00014963]
[1736953189696,0.53462425,99600.0,99599.0,0.00214963]
[1736953190027,0.53462425,99600.0,99599.0,0.00314963]
[1736953190242,0.45491909,99600.0,99599.0,0.00314963]
[1736953190684,0.45491909,99600.0,99599.0,0.00214963]
[1736953190883,0.35069217,99600.0,99599.0,0.00214963]
[1736953191289,0.35069217,99600.0,99599.0,0.00014963]
[1736953191740,0.35369217,99600.0,99599.0,0.00014963]
[1736953192171,0.40687043,99600.0,99599.0,0.00014963]
[1736953192323,0.50809735,99600.0,99599.0,0.00014963]
[1736953192687,0.45491909,99600.0,99599.0,0.00114963]
[1736953192888,0.45491909,99600.0,99599.0,0.00014963]
[1736953194149,0.53191909,99600.0,99599.0,0.00014963]
[1736953194752,0.36351909,99600.0,99599.0,0.00014963]
[1736953194956,0.36351909,99600.0,99599.0,0.00114963]
[1736953195379,0.36351909,99600.0,99599.0,0.00014963]
[1736953195784,0.36651909,99600.0,99599.0,0.00014963]
[1736953196509,0.373825,99589.0,99588.0,0.01006907]
[1736953196716,0.373825,99589.0,99588.0,0.01021875]
[1736953196916,0.15,99586.0,99585.0,0.09996]
[1736953197043,0.15,99584.0,99579.0,0.07416962]
[1736953197246,0.11622599,99595.0,99579.0,0.07416962]
[1736953197247,0.173,99580.0,99579.0,0.00014977]
[1736953197447,0.023,99578.0,99568.0,0.02270016]
[1736953197717,0.15,99569.0,99568.0,0.02284993]
[1736953198155,0.15,99569.0,99568.0,0.00014977]
[1736953198156,0.173,99569.0,99568.0,0.00014977]
[1736953198366,0.173,99569.0,99568.0,0.02284993]
[1736953198780,0.023,99569.0,99568.0,0.02684993]
[1736953198995,0.023,99569.0,99568.0,0.02864564]
[1736953199226,0.023,99569.0,99568.0,0.02464564]
[1736953199432,0.01042054,99581.0,99580.0,0.02270016]
[1736953199851,0.173,99581.0,99580.0,0.02270016]
[1736953200413,0.15,99581.0,99580.0,0.02270016]
[1736953200615,0.01036767,99582.0,99581.0,0.02270016]
[1736953200795,0.023,99599.0,99595.0,0.02270016]
[1736953200999,0.023,99597.0,99591.0,0.02270016]
[1736953201279,0.0497,99613.0,99568.0,0.00194548]
[1736953201280,0.023,99595.0,99568.0,0.00194548]
[1736953201436,0.15,99569.0,99568.0,0.00194548]
[1736953201650,0.173,99569.0,99568.0,0.00194548]
[1736953202065,0.15,99569.0,99568.0,0.00194548]
[1736953202406,0.12747316,99600.0,99568.0,0.00194548]
[1736953202407,0.0008551,99600.0,99570.0,0.0478]
[1736953202615,0.0008551,99600.0,99571.0,0.1052309]
[1736953202836,0.200805,99599.0,99572.0,1.50724]
[1736953203037,0.01119939,99600.0,99580.0,0.11622599]
[1736953203252,0.12742538,99600.0,99581.0,0.001004]
[1736953203410,0.200825,99589.0,99571.0,0.0243]
[1736953203614,0.173,99580.0,99572.0,0.00724]
[1736953203825,0.023,99597.0,99580.0,0.001]
[1736953204030,0.173,99581.0,99580.0,0.001]
[1736953204209,0.173,99585.0,99580.0,0.001]
[1736953204393,0.20082,99592.0,99573.0,0.0010042]
[1736953204595,0.200821,99591.0,99573.0,0.0010042]
[1736953204843,0.200823,99591.0,99573.0,0.0010042]
[1736953205225,0.173,99590.0,99580.0,0.003]
[1736953205674,0.15,99590.0,99581.0,0.00824409]
[1736953205863,0.023,99589.0,99581.0,0.08334409]
[1736953206234,0.173,99598.0,99581.0,0.08334409]
[1736953206425,0.023,99598.0,99581.0,0.08334409]
[1736953206554,0.0008551,99600.0,99582.0,0.001004]
[1736953206766,0.023,99599.0,99582.0,0.001004]
[1736953207170,0.0008551,99600.0,99582.0,0.001004]
[1736953207373,0.0008551,99600.0,99581.0,0.07750343]
[1736953207780,0.01105703,99600.0,99582.0,0.10523092]
[1736953207986,0.01105703,99600.0,99583.0,0.04700395]
[1736953207987,0.0008551,99600.0,99583.0,0.04700395]
[1736953208193,0.0008551,99600.0,99587.0,0.1]
[1736953208460,0.0008551,99600.0,99594.0,0.02003502]
[1736953208904,0.0008551,99600.0,99595.0,0.00724]
[1736953209397,0.0008551,99600.0,99596.0,1.5]
[1736953209607,0.0008551,99600.0,99596.0,0.02579263]
[1736953210487,0.0008551,99600.0,99597.0,1.5]
[1736953210696,0.0008551,99600.0,99597.0,1.60422692]
[1736953210904,0.0008551,99600.0,99597.0,1.62277955]
[1736953211539,0.0008539,99627.0,99597.0,1.62277955]
[1736953213532,0.13062782,99649.0,99648.0,0.10422692]
[1736953213731,0.14101228,99649.0,99648.0,0.10422692]
[1736953213944,0.14101228,99649.0,99627.0,0.01560118]
[1736953213945,0.15,99648.0,99627.0,0.01560118]
[1736953214146,0.15,99648.0,99634.0,0.00724]
[1736953214349,0.15,99639.0,99615.0,0.1]
[1736953214554,0.15,99629.0,99616.0,0.10390278]
[1736953214759,0.15,99629.0,99616.0,0.06242651]
[1736953214961,0.023,99624.0,99596.0,0.00724]
[1736953215151,0.15,99619.0,99613.0,0.39325202]
[1736953215374,0.15,99617.0,99613.0,0.38703203]
[1736953215508,0.350774,99614.0,99613.0,0.35987745]
[1736953215713,0.373774,99614.0,99613.0,0.09137393]
[1736953215917,0.373774,99614.0,99583.0,0.04]
[1736953215918,0.173,99614.0,99588.0,0.0204243]
[1736953216124,0.15,99596.0,99583.0,0.03470846]
[1736953216327,0.15,99596.0,99588.0,0.1]
[1736953216596,0.01084691,99624.0,99600.0,0.1]
[1736953216781,0.01084691,99624.0,99609.0,0.1]
[1736953216998,0.01084691,99624.0,99617.0,0.1]
[1736953217217,0.01084691,99624.0,99620.0,0.1]
[1736953217411,0.01084691,99624.0,99621.0,0.10422692]
[1736953217630,0.01184691,99624.0,99618.0,0.00724]
[1736953217841,0.01184691,99624.0,99610.0,0.03470846]
[1736953217842,0.01084691,99624.0,99619.0,0.00736]
[1736953218053,0.01084691,99624.0,99620.0,0.10422692]
[1736953218468,0.01084691,99624.0,99623.0,0.1]
[1736953218684,0.00932053,99650.0,99634.0,0.1]
[1736953218894,0.14004647,99649.0,99635.0,0.10422692]
[1736953219107,0.14004647,99649.0,99635.0,0.13893538]
[1736953219462,0.15,99648.0,99635.0,0.13893538]
[1736953220285,0.15,99648.0,99637.0,0.1]
[1736953220550,0.15,99648.0,99635.0,0.03470846]
[1736953220771,0.15,99648.0,99636.0,0.10422692]
[1736953220946,0.15,99648.0,99637.0,0.00736]
[1736953221960,0.200708,99647.0,99637.0,0.00736]
[1736953222169,0.14004647,99649.0,99635.0,0.03870846]
[1736953222170,0.173,99638.0,99635.0,0.00062886]
[1736953222347,0.173,99638.0,99637.0,0.002]
[1736953222596,0.173,99638.0,99637.0,0.00214987]
[1736953222976,0.15,99629.0,99618.0,0.00736]
[1736953223183,0.15,99629.0,99618.0,0.00014991]
[1736953223381,0.15,99629.0,99619.0,0.00736]
[1736953223854,0.15,99629.0,99620.0,0.10422692]
[1736953224281,0.075,99643.0,99622.0,0.1]
[1736953224491,0.00932053,99650.0,99622.0,0.1]
[1736953224492,0.17852643,99649.0,99637.0,0.001]
[1736953224694,0.200719,99642.0,99637.0,0.001]
[1736953224906,0.15,99637.0,99623.0,0.00736]
[1736953225080,0.15,99637.0,99620.0,0.001]
[1736953225081,0.15,99626.0,99620.0,0.001]
[1736953225284,0.15,99624.0,99621.0,0.00736]
[1736953225487,0.15,99626.0,99619.0,0.00836]
[1736953225684,0.15,99626.0,99619.0,0.001]
[1736953225886,0.15,99626.0,99618.0,0.00014991]
[1736953226460,0.15,99632.0,99619.0,0.10422692]
[1736953227085,0.15997649,99632.0,99622.0,0.1]
[1736953227291,0.15997649,99632.0,99623.0,0.10422692]
[1736953227533,0.00997649,99632.0,99624.0,0.1]
[1736953227699,0.1508552,99648.0,99625.0,1.60422692]
[1736953228151,0.0109008,99648.0,99626.0,0.01845941]
[1736953228384,0.0008552,99648.0,99645.0,0.1]
[1736953228616,0.0008552,99648.0,99647.0,0.1]
[1736953228820,0.0008552,99648.0,99647.0,1.70422692]
[1736953229107,0.0018552,99648.0,99647.0,1.80422692]
[1736953229440,0.0018552,99648.0,99647.0,1.82268633]
[1736953229986,0.0018552,99648.0,99647.0,1.83004633]
[1736953230722,0.0008552,99648.0,99647.0,1.83004633]
[1736953230969,0.0008552,99648.0,99647.0,1.72968633]
[1736953231191,0.0008552,99648.0,99647.0,1.83004633]
[1736953231423,0.0099145,99658.0,99647.0,1.83004633]
[1736953231424,9e-05,99670.0,99669.0,0.1]
[1736953231657,0.01573665,99696.0,99687.0,0.2]
[1736953231889,0.01573665,99696.0,99695.0,0.2]
[1736953232105,0.04995,99715.0,99695.0,1.60422692]
[1736953232283,0.04995,99715.0,99695.0,2.51603701]
[1736953232527,0.04995,99715.0,99695.0,1.01603701]
[1736953232735,0.04995,99715.0,99696.0,0.00736]
[1736953232947,0.04995,99715.0,99695.0,0.00014991]
[1736953233159,0.04995,99715.0,99696.0,0.00736]
[1736953233396,22.93107174,99699.0,99696.0,0.00736]
[1736953233608,22.93107174,99699.0,99696.0,0.01845941]
[1736953234050,22.93107174,99699.0,99697.0,1.5]
[1736953234260,0.15,99698.0,99696.0,0.01845941]
[1736953234483,0.15,99698.0,99697.0,0.00736]
[1736953234695,0.15,99698.0,99696.0,0.01845941]
[1736953234881,0.15,99698.0,99695.0,0.00014991]
[1736953234882,0.15,99698.0,99695.0,0.00614991]
[1736953235321,0.15,99698.0,99695.0,0.00014991]
[1736953235535,0.15,99698.0,99696.0,0.009]
[1736953235716,0.15,99698.0,99695.0,0.00714991]
[1736953236019,0.14,99698.0,99696.0,0.007]
[1736953236205,0.14,99698.0,99695.0,1.50714991]
[1736953236652,22.93107174,99699.0,99695.0,1.51414991]
[1736953236863,22.93107174,99699.0,99696.0,0.01845941]
[1736953237098,22.93107174,99699.0,99696.0,0.12268633]
[1736953237278,22.93107174,99699.0,99697.0,0.00736]
[1736953237509,22.93107174,99699.0,99698.0,0.00736]
[1736953238347,22.93107174,99699.0,99698.0,1.12762393]
[1736953238555,21.59977276,99699.0,99698.0,1.12762393]
[1736953238744,21.59977276,99699.0,99698.0,1.13362393]
[1736953239112,21.59977276,99699.0,99698.0,1.13872334]
[1736953239429,21.59977276,99699.0,99698.0,1.15208334]
[1736953239644,21.59977276,99699.0,99698.0,1.14608334]
[1736953240228,21.55597917,99699.0,99698.0,1.16908334]
[1736953240427,21.53353303,99699.0,99698.0,1.14608334]
[1736953240641,21.47289497,99699.0,99698.0,1.15308334]
[1736953241100,21.43302796,99699.0,99698.0,1.18508334]
[1736953241286,21.24502156,99699.0,99698.0,1.18508334]
[1736953241494,21.20971585,99699.0,99698.0,1.17772334]
[1736953241725,21.16889956,99699.0,99698.0,1.18508334]
[1736953241936,21.1164753,99699.0,99698.0,2.40626634]
[1736953242140,20.97676816,99699.0,99698.0,2.48241934]
[1736953242282,20.77631083,99699.0,99698.0,2.63241934]
[1736953242488,20.70723499,99699.0,99698.0,2.63241934]
[1736953242689,20.67626869,99699.0,99698.0,2.30689434]
[1736953242868,20.67626869,99699.0,99698.0,2.27653434]
[1736953243071,20.67626869,99699.0,99698.0,1.9266953]
[1736953243271,20.61646314,99699.0,99698.0,1.6520483]
[1736953243636,19.33600599,99699.0,99698.0,1.25112334]
[1736953243788,19.1165096,99699.0,99698.0,1.25848334]
[1736953243992,19.07710022,99699.0,99698.0,1.41548334]
[1736953244199,19.02361033,99699.0,99698.0,1.41548334]
[1736953244396,18.7589376,99699.0,99698.0,1.88731834]
[1736953244653,18.7589376,99699.0,99698.0,3.38731834]
[1736953244814,18.7589376,99699.0,99698.0,3.23731834]
[1736953245017,18.66716977,99699.0,99698.0,3.22831834]
[1736953245217,18.60619669,99699.0,99698.0,3.20583834]
[1736953245417,18.52579263,99699.0,99698.0,3.20583834]
[1736953245624,18.3901874,99699.0,99698.0,3.21195834]
[1736953245824,18.3403156,99699.0,99698.0,3.21983834]
[1736953246022,18.31672438,99699.0,99698.0,3.21983834]
[1736953246225,18.26458255,99699.0,99698.0,3.21983834]
[1736953246472,16.10672585,99699.0,99698.0,3.46583834]
[1736953246679,15.38166129,99699.0,99698.0,3.69631519]
[1736953246895,12.63942468,99699.0,99698.0,3.69631519]
[1736953247107,10.93317415,99699.0,99698.0,3.13063347]
[1736953247315,10.76800792,99699.0,99698.0,3.16713364]
[1736953247549,10.28539268,99699.0,99698.0,3.17401364]
[1736953247753,9.62588204,99699.0,99698.0,3.17401364]
[1736953247991,9.08241616,99699.0,99698.0,3.27401364]
[1736953248206,8.6616231,99699.0,99698.0,3.23851347]
[1736953248420,7.21684838,99699.0,99698.0,3.47072646]
[1736953248626,7.21684838,99699.0,99698.0,3.20194734]
[1736953248627,6.91262904,99699.0,99698.0,3.20194734]
[1736953248836,6.41772766,99699.0,99698.0,3.20194734]
[1736953249037,6.31341506,99699.0,99698.0,3.57072646]
[1736953249249,6.2388953,99699.0,99698.0,3.68551102]
[1736953249449,5.4245662,99699.0,99698.0,3.15529014]
[1736953249795,5.22960073,99699.0,99698.0,0.45888313]
[1736953250038,5.22960073,99699.0,99698.0,1.63543215]
[1736953250039,5.12930073,99699.0,99698.0,1.63543215]
[1736953250288,5.12930073,99699.0,99698.0,1.64331215]
[1736953250545,5.12930073,99699.0,99698.0,6.72470547]
[1736953250751,5.11332618,99699.0,99698.0,8.21982547]
[1736953251003,5.09326618,99699.0,99698.0,7.48483747]
[1736953251225,4.97195831,99699.0,99698.0,7.48183747]
[1736953251429,4.96317786,99699.0,99698.0,2.77570547]
[1736953251579,4.88284386,99699.0,99698.0,3.20582914]
[1736953251785,4.86278386,99699.0,99698.0,3.34394914]
[1736953251996,4.74195385,99699.0,99698.0,8.39394914]
[1736953252196,4.74195385,99699.0,99698.0,8.40192547]
[1736953252378,4.74195385,99699.0,99698.0,7.62519547]
[1736953252944,4.74195385,99699.0,99698.0,7.61731547]
[1736953253150,4.74195385,99699.0,99698.0,7.62519547]
[1736953253357,3.08381454,99699.0,99698.0,7.62519547]
[1736953253565,3.02363454,99699.0,99698.0,7.64719547]
[1736953253784,3.02363454,99699.0,99698.0,8.43180547]
[1736953253986,3.02363454,99699.0,99698.0,8.40092547]
[1736953254191,2.96801751,99699.0,99698.0,8.40092547]
[1736953254393,2.88977751,99699.0,99698.0,8.43180547]
[1736953254816,2.88777751,99699.0,99698.0,8.43180547]
[1736953255047,2.84965751,99699.0,99698.0,8.43280547]
[1736953255244,2.60708657,99699.0,99698.0,8.39270547]
[1736953255381,2.58401674,99699.0,99698.0,8.39170547]
[1736953255596,2.58401674,99699.0,99698.0,8.38382547]
[1736953255792,2.56395674,99699.0,99698.0,8.39170547]
[1736953256053,2.48371674,99699.0,99698.0,8.49750547]
[1736953256671,2.48371674,99699.0,99698.0,8.48962547]
[1736953256837,2.46365674,99699.0,99698.0,8.48962547]
[1736953257008,2.27559674,99699.0,99698.0,8.38382547]
[1736953257211,2.27559674,99699.0,99698.0,8.36870547]
[1736953257435,2.27659674,99699.0,99698.0,8.36970547]
[1736953257634,2.07535409,99699.0,99698.0,3.41762547]
[1736953257834,2.00914148,99699.0,99698.0,8.49750547]